[Event "WYCC U18 Girls 2019"]
[Site "Mumbai"]
[Date "2019.10.06"]
[Round "6.4"]
[White "Munkhzul, Turmunkh"]
[Black "Serikbay, Assel"]
[Result "1/2-1/2"]
[ECO "C18"]
[WhiteElo "2332"]
[BlackElo "2208"]
[Annotator "ChessBase"]
[PlyCount "186"]
[EventDate "2019.10.02"]
[EventType "swiss"]
[EventCountry "IND"]
[SourceTitle "playchess.com"]
[Source "ChessBase"]
[SourceQuality "1"]
[TimeControl "40/5400+30:1800+30"]

1. e4 {[%emt 0:00:00]} e6 {[%emt 0:00:00]} 2. d4 {[%emt 0:00:00]} d5 {[%emt 0:00:00]} 3. Nc3 {[%emt 0:00:00]} Bb4 {[%emt 0:00:00]} 4. e5 {[%emt 0:00:08]} c5 {[%emt 0:00:19]} 5. a3 {[%emt 0:00:19]} Bxc3+ {[%emt 0:00:35]} 6. bxc3 {[%emt 0:00:08]} Ne7 {[%emt 0:00:23]} 7. Qg4 {[%emt 0:01:10]} O-O {[%emt 0:01:39]} 8. Bd3 {[%emt 0:00:46]} c4 {[%emt 0:03:21]} 9. Bh6 {[%emt 0:00:55]} Ng6 {[%emt 0:00:48]} 10. Bxg6 {[%emt 0:03:54]} fxg6 {[%emt 0:04:03]} 11. Bd2 {[%emt 0:04:59]} Qe8 {[%emt 0:05:20]} 12. Nh3 {[%emt 0:02:18]} Qf7 {[%emt 0:06:24]} 13. O-O {[%emt 0:01:37]} Nc6 {[%emt 0:03:54]} 14. Rae1 {[%emt 0:07:18]} Qe7 {[%emt 0:14:39]} 15. Bc1 {[%emt 0:02:56]} Nd8 {[%emt 0:06:45]} 16. Ng5 {[%emt 0:02:28]} Nf7 {[%emt 0:10:05]} 17. h4 {[%emt 0:04:18]} Bd7 {[%emt 0:08:04]} 18. f3 {[%emt 0:10:51]} b5 {[%emt 0:07:04]} 19. Nh3 {[%emt 0:19:04]} Nh6 {[%emt 0:12:20]} 20. Qg5 {[%emt 0:02:07]} Qxg5 {[%emt 0:03:05]} 21. Bxg5 {[%emt 0:00:11]} Kf7 {[%emt 0:01:40]} 22. Bd2 {[%emt 0:15:07]} Ke7 {[%emt 0:00:57]} 23. Bg5+ {[%emt 0:01:07]} Ke8 {[%emt 0:00:49]} 24. Rb1 {[%emt 0:01:52]} Bc6 {[%emt 0:01:20]} 25. h5 {[%emt 0:03:09]} Kd7 {[%emt 0:05:11]} 26. hxg6 {[%emt 0:02:11]} hxg6 {[%emt 0:00:02]} 27. Bd2 {[%emt 0:01:45]} Nf5 {[%emt 0:00:36]} 28. Nf4 {[%emt 0:00:33]} Ne7 {[%emt 0:01:46]} 29. Kf2 {[%emt 0:00:38]} Rh8 {[%emt 0:01:13]} 30. Rh1 {[%emt 0:00:36]} Raf8 {[%emt 0:00:57]} 31. g4 {[%emt 0:00:27]} Rb8 {[%emt 0:00:50]} 32. Kg2 {[%emt 0:00:37]} a6 {[%emt 0:00:35]} 33. Rxh8 {[%emt 0:01:03]} Rxh8 {[%emt 0:00:02]} 34. Rh1 {[%emt 0:00:17]} Rxh1 {[%emt 0:01:09]} 35. Kxh1 {[%emt 0:00:05]} Bb7 {[%emt 0:00:07]} 36. Be1 {[%emt 0:00:13]} a5 {[%emt 0:01:14]} 37. Bh4 {[%emt 0:03:38]} g5 {[%emt 0:00:09]} 38. Bxg5 {[%emt 0:00:09]} Nc6 {[%emt 0:00:06]} 39. Ne2 {[%emt 0:00:19]} b4 {[%emt 0:00:20]} 40. cxb4 {[%emt 0:00:09]} axb4 {[%emt 0:00:03]} 41. axb4 {[%emt 0:30:55]} Nxb4 {[%emt 0:30:05]} 42. c3 {[%emt 0:00:10]} Nd3 {[%emt 0:00:00]} 43. Kg2 {[%emt 0:00:00]} Kc6 {[%emt 0:00:00]} 44. Kg3 {[%emt 0:00:00]} Kd7 {[%emt 0:00:00]} 45. Bc1 {[%emt 0:00:00]} Ke7 {[%emt 0:00:00]} 46. Ba3+ {[%emt 0:00:00]} Kf7 {[%emt 0:00:00]} 47. Ng1 {[%emt 0:00:00]} Bc6 {[%emt 0:00:00]} 48. Nh3 {[%emt 0:00:00]} Kg6 {[%emt 0:00:00]} 49. f4 {[%emt 0:00:00]} Bd7 {[%emt 0:00:00]} 50. Ng5 {[%emt 0:00:00]} Bc8 {[%emt 0:00:00]} 51. Nf3 {[%emt 0:00:00]} Kf7 {[%emt 0:00:00]} 52. Ng5+ {[%emt 0:00:00]} Kg6 {[%emt 0:00:00]} 53. Kf3 {[%emt 0:00:00]} Bd7 {[%emt 0:00:00]} 54. Ke3 {[%emt 0:00:00]} Bc8 {[%emt 0:00:00]} 55. Bf8 {[%emt 0:00:00]} Bd7 {[%emt 0:00:00]} 56. Be7 {[%emt 0:00:00]} Bc8 {[%emt 0:00:00]} 57. Bd8 {[%emt 0:00:00]} Bd7 {[%emt 0:00:00]} 58. Kf3 {[%emt 0:00:00]} Bc8 {[%emt 0:00:00]} 59. Kg3 {[%emt 0:00:00]} Bd7 {[%emt 0:00:00]} 60. Nf3 {[%emt 0:00:00]} Kf7 {[%emt 0:00:00]} 61. Ba5 {[%emt 0:00:00]} Bc8 {[%emt 0:00:00]} 62. Nh4 {[%emt 0:00:00]} g6 {[%emt 0:00:00]} 63. Nf3 {[%emt 0:00:00]} Bd7 {[%emt 0:00:00]} 64. Ng5+ {[%emt 0:00:00]} Kg7 {[%emt 0:00:00]} 65. Nh3 {[%emt 0:00:00]} Kf7 {[%emt 0:00:00]} 66. Kh4 {[%emt 0:00:00]} Kg7 {[%emt 0:00:00]} 67. Bd8 {[%emt 0:00:00]} Kh6 {[%emt 0:04:05]} 68. Bf6 {[%emt 0:00:00]} Bc8 {[%emt 0:01:21]} 69. Be7 {[%emt 0:00:00]} Kg7 {[%emt 0:01:10]} 70. Kg5 {[%emt 0:00:00]} Ne1 {[%emt 0:01:31]} 71. Ng1 {[%emt 0:00:00]} Bd7 {[%emt 0:00:58]} 72. Kh4 {[%emt 0:00:00]} Kf7 {[%emt 0:00:22]} 73. Bf6 {[%emt 0:00:00]} Ng2+ {[%emt 0:01:39]} 74. Kg3 {[%emt 0:00:00]} Ne3 {[%emt 0:00:15]} 75. Ne2 {[%emt 0:00:00]} Nf1+ {[%emt 0:02:09]} 76. Kf2 {[%emt 0:00:00]} Nd2 {[%emt 0:00:18]} 77. Ke3 {[%emt 0:00:00]} Nf1+ {[%emt 0:00:06]} 78. Kf2 {[%emt 0:00:00]} Nd2 {[%emt 0:00:07]} 79. Bd8 {[%emt 0:00:00]} Ne4+ {[%emt 0:00:17]} 80. Ke3 {[%emt 0:00:03]} Ba4 {[%emt 0:01:21]} 81. Bh4 {[%emt 0:07:16]} Bd1 {[%emt 0:00:29]} 82. Be1 {[%emt 0:00:07]} Ke8 {[%emt 0:02:26]} 83. g5 {[%emt 0:03:06]} Bxe2 {[%emt 0:01:24]} 84. Kxe2 {[%emt 0:00:05]} Kd7 {[%emt 0:00:15]} 85. Kd1 {[%emt 0:00:04]} Kc6 {[%emt 0:00:09]} 86. Kc2 {[%emt 0:00:03]} Kc7 {[%emt 0:00:28]} 87. Kb2 {[%emt 0:00:05]} Kc6 {[%emt 0:00:07]} 88. Ka2 {[%emt 0:00:06]} Kb6 {[%emt 0:00:43]} 89. Ka3 {[%emt 0:00:16]} Kb5 {[%emt 0:00:13]} 90. Kb2 {[%emt 0:00:02]} Kc6 {[%emt 0:00:04]} 91. Kc2 {[%emt 0:00:03]} Kd7 {[%emt 0:00:11]} 92. Kc1 {[%emt 0:00:50]} Kc6 {[%emt 0:00:13]} 93. Kb2 {[%emt 0:00:11]} Kb6 {[%emt 0:00:05]} 1/2-1/2

[Event "WYCC U18 Girls 2019"]
[Site "Mumbai"]
[Date "2019.10.06"]
[Round "6.5"]
[White "Azali, Tannaz"]
[Black "Schulze, Lara"]
[Result "0-1"]
[ECO "E32"]
[WhiteElo "2022"]
[BlackElo "2327"]
[Annotator "ChessBase"]
[PlyCount "88"]
[EventDate "2019.10.02"]
[EventType "swiss"]
[EventCountry "IND"]
[SourceTitle "playchess.com"]
[Source "ChessBase"]
[SourceQuality "1"]
[TimeControl "40/5400+30:1800+30"]

1. d4 {[%emt 0:00:00]} Nf6 {[%emt 0:00:00]} 2. c4 {[%emt 0:00:00]} e6 {[%emt 0:00:00]} 3. Nc3 {[%emt 0:00:00]} Bb4 {[%emt 0:00:00]} 4. Qc2 {[%emt 0:00:05]} b6 {[%emt 0:00:00]} 5. e4 {[%emt 0:01:40]} c5 {[%emt 0:00:35]} 6. d5 {[%emt 0:02:37]} Qe7 {[%emt 0:00:27]} 7. Be2 {[%emt 0:08:58]} d6 {[%emt 0:02:16]} 8. Nf3 {[%emt 0:05:27]} O-O {[%emt 0:01:16]} 9. O-O {[%emt 0:00:48]} Bxc3 {[%emt 0:00:17]} 10. bxc3 {[%emt 0:00:07]} exd5 {[%emt 0:00:14]} 11. exd5 {[%emt 0:00:26]} Bf5 {[%emt 0:00:22]} 12. Qxf5 {[%emt 0:12:04]} Qxe2 {[%emt 0:01:17]} 13. Bh6 {[%emt 0:01:22]} Qe4 {[%emt 0:00:27]} 14. Qxe4 {[%emt 0:03:59]} Nxe4 {[%emt 0:00:02]} 15. Bf4 {[%emt 0:00:25]} Nd7 {[%emt 0:03:51]} 16. Rfe1 {[%emt 0:03:22]} Rfe8 {[%emt 0:13:30]} 17. Re3 {[%emt 0:06:54]} f5 {[%emt 0:05:30]} 18. a4 {[%emt 0:11:37]} Kf7 {[%emt 0:06:31]} 19. Rae1 {[%emt 0:06:14]} Ndf6 {[%emt 0:08:21]} 20. h3 {[%emt 0:05:29]} h6 {[%emt 0:03:56]} 21. g4 {[%emt 0:07:30]} g5 {[%emt 0:05:08]} 22. Bh2 {[%emt 0:00:09]} f4 {[%emt 0:00:50]} 23. Rd3 {[%emt 0:00:08]} Nd7 {[%emt 0:04:11]} 24. Kg2 {[%emt 0:06:47]} Rad8 {[%emt 0:20:21]} 25. Rb1 {[%emt 0:02:59]} Nef6 {[%emt 0:05:01]} 26. Rb2 {[%emt 0:02:53]} Re4 {[%emt 0:02:16]} 27. Nd2 {[%emt 0:04:36]} Re2 {[%emt 0:07:40]} 28. Kf1 {[%emt 0:00:08]} Rde8 {[%emt 0:00:16]} 29. Rb1 {[%emt 0:00:07]} R2e7 {[%emt 0:00:40]} 30. Nf3 {[%emt 0:00:16]} Ne5 {[%emt 0:01:13]} 31. Nxe5+ {[%emt 0:00:06]} Rxe5 {[%emt 0:00:07]} 32. a5 {[%emt 0:01:09]} Nd7 {[%emt 0:03:42]} 33. Rd2 {[%emt 0:01:39]} Re4 {[%emt 0:00:44]} 34. Ra2 {[%emt 0:00:06]} Rxc4 {[%emt 0:01:24]} 35. axb6 {[%emt 0:00:08]} axb6 {[%emt 0:00:04]} 36. Ra7 {[%emt 0:00:07]} Re7 {[%emt 0:00:15]} 37. Rb3 {[%emt 0:00:06]} Rce4 {[%emt 0:00:50]} 38. Rc7 {[%emt 0:00:57]} Kf6 {[%emt 0:02:37]} 39. Kg2 {[%emt 0:01:36]} Ra4 {[%emt 0:01:11]} 40. Rb2 {[%emt 0:01:29]} Ne5 {[%emt 0:01:00]} 41. Rxe7 {[%emt 0:30:23]} Kxe7 {[%emt 0:03:11]} 42. Rxb6 {[%emt 0:00:00]} Ra3 {[%emt 0:01:43]} 43. Rb7+ {[%emt 0:00:00]} Kf6 {[%emt 0:00:26]} 44. Rh7 {[%emt 0:00:00]} Nf7 {[%emt 0:00:47]} 0-1

[Event "WYCC U18 Girls 2019"]
[Site "Mumbai"]
[Date "2019.10.06"]
[Round "6.6"]
[White "Vantika Agrawal"]
[Black "Harshini A"]
[Result "1-0"]
[ECO "D02"]
[WhiteElo "2283"]
[BlackElo "2230"]
[Annotator "ChessBase"]
[PlyCount "75"]
[EventDate "2019.10.02"]
[EventType "swiss"]
[EventCountry "IND"]
[SourceTitle "playchess.com"]
[Source "ChessBase"]
[SourceQuality "1"]
[TimeControl "40/5400+30:1800+30"]

1. Nf3 {[%emt 0:00:00]} d5 {[%emt 0:00:00]} 2. d4 {[%emt 0:00:41]} Nf6 {[%emt 0:00:11]} 3. c4 {[%emt 0:00:05]} g6 {[%emt 0:00:06]} 4. cxd5 {[%emt 0:03:37]} Nxd5 {[%emt 0:00:34]} 5. e4 {[%emt 0:04:41]} Nb6 {[%emt 0:00:05]} 6. a4 {[%emt 0:04:20]} a5 {[%emt 0:00:31]} 7. h3 {[%emt 0:04:32]} Bg7 {[%emt 0:00:14]} 8. Bb5+ {[%emt 0:01:28]} Bd7 {[%emt 0:02:16]} 9. Be2 {[%emt 0:03:57]} O-O {[%emt 0:07:53]} 10. O-O {[%emt 0:00:48]} Nc6 {[%emt 0:00:47]} 11. Nc3 {[%emt 0:00:56]} Nb4 {[%emt 0:02:08]} 12. Bf4 {[%emt 0:13:43]} c6 {[%emt 0:01:19]} 13. Na2 {[%emt 0:14:38]} Nxa2 {[%emt 0:02:58]} 14. Rxa2 {[%emt 0:00:04]} Be6 {[%emt 0:00:04]} 15. Ra1 {[%emt 0:04:10]} h6 {[%emt 0:07:51]} 16. Qc1 {[%emt 0:10:55]} Kh7 {[%emt 0:00:18]} 17. d5 {[%emt 0:02:43]} Bd7 {[%emt 0:00:52]} 18. Rd1 {[%emt 0:05:33]} Rc8 {[%emt 0:06:05]} 19. d6 {[%emt 0:03:32]} exd6 {[%emt 0:05:32]} 20. Bxd6 {[%emt 0:00:20]} Re8 {[%emt 0:00:05]} 21. Qc2 {[%emt 0:07:58]} Be6 {[%emt 0:10:48]} 22. Rd2 {[%emt 0:02:41]} Ra8 {[%emt 0:09:03]} 23. Rad1 {[%emt 0:01:14]} Qc8 {[%emt 0:00:24]} 24. Nd4 {[%emt 0:00:52]} Bf8 {[%emt 0:11:15]} 25. Nxe6 {[%emt 0:01:23]} Qxe6 {[%emt 0:00:48]} 26. Bc7 {[%emt 0:00:27]} Nc8 {[%emt 0:08:36]} 27. f3 {[%emt 0:00:29]} Bb4 {[%emt 0:05:20]} 28. Bc4 {[%emt 0:03:04]} Qf6 {[%emt 0:04:35]} 29. Rd7 {[%emt 0:00:24]} Ne7 {[%emt 0:01:31]} 30. f4 {[%emt 0:01:21]} Kg8 {[%emt 0:04:11]} 31. Be5 {[%emt 0:03:05]} Qh4 {[%emt 0:00:06]} 32. Kh2 {[%emt 0:00:41]} Be1 {[%emt 0:07:09]} 33. Qb3 {[%emt 0:00:24]} Qf2 {[%emt 0:01:23]} 34. Bxf7+ {[%emt 0:00:17]} Kf8 {[%emt 0:00:04]} 35. Rxe1 {[%emt 0:01:48]} Qxe1 {[%emt 0:00:14]} 36. Bxe8 {[%emt 0:00:34]} Kxe8 {[%emt 0:01:53]} 37. Qe6 {[%emt 0:00:13]} Qb4 {[%emt 0:00:43]} 38. Bd6 {[%emt 0:00:13]} 1-0

[Event "WYCC U18 Girls 2019"]
[Site "Mumbai"]
[Date "2019.10.06"]
[Round "6.7"]
[White "Makhija, Aashna"]
[Black "Obolentseva, Alexandra"]
[Result "1/2-1/2"]
[ECO "B90"]
[WhiteElo "2084"]
[BlackElo "2282"]
[Annotator "ChessBase"]
[PlyCount "62"]
[EventDate "2019.10.02"]
[EventType "swiss"]
[EventCountry "IND"]
[SourceTitle "playchess.com"]
[Source "ChessBase"]
[SourceQuality "1"]
[TimeControl "40/5400+30:1800+30"]

1. e4 {[%emt 0:00:00]} c5 {[%emt 0:00:00]} 2. Nf3 {[%emt 0:00:00]} d6 {[%emt 0:00:00]} 3. d4 {[%emt 0:00:16]} cxd4 {[%emt 0:00:00]} 4. Nxd4 {[%emt 0:00:19]} Nf6 {[%emt 0:00:01]} 5. Nc3 {[%emt 0:00:14]} a6 {[%emt 0:00:08]} 6. Be3 {[%emt 0:00:23]} g6 {[%emt 0:01:25]} 7. f3 {[%emt 0:02:46]} Bg7 {[%emt 0:00:10]} 8. Qd2 {[%emt 0:01:31]} b5 {[%emt 0:00:21]} 9. a4 {[%emt 0:02:22]} b4 {[%emt 0:04:53]} 10. Na2 {[%emt 0:00:45]} a5 {[%emt 0:01:20]} 11. Bb5+ {[%emt 0:02:59]} Bd7 {[%emt 0:02:00]} 12. c3 {[%emt 0:01:14]} bxc3 {[%emt 0:00:48]} 13. Nxc3 {[%emt 0:01:29]} O-O {[%emt 0:00:14]} 14. O-O {[%emt 0:06:06]} Qc7 {[%emt 0:08:05]} 15. Rab1 {[%emt 0:07:21]} Na6 {[%emt 0:10:47]} 16. Bxa6 {[%emt 0:11:38]} Rxa6 {[%emt 0:00:08]} 17. Ndb5 {[%emt 0:01:20]} Qd8 {[%emt 0:04:08]} 18. Rfc1 {[%emt 0:04:28]} Ra8 {[%emt 0:05:20]} 19. Bd4 {[%emt 0:10:02]} Ne8 {[%emt 0:04:48]} 20. Nd5 {[%emt 0:07:06]} Bxd4+ {[%emt 0:02:24]} 21. Qxd4 {[%emt 0:00:16]} Ng7 {[%emt 0:00:43]} 22. Ndc7 {[%emt 0:04:16]} Ne6 {[%emt 0:01:25]} 23. Nxe6 {[%emt 0:05:48]} fxe6 {[%emt 0:00:38]} 24. Nc7 {[%emt 0:15:16]} Rb8 {[%emt 0:03:18]} 25. Qa7 {[%emt 0:03:02]} Rb4 {[%emt 0:00:33]} 26. b3 {[%emt 0:00:47]} Qb8 {[%emt 0:00:32]} 27. Qxa5 {[%emt 0:02:49]} Rxb3 {[%emt 0:00:09]} 28. Nb5 {[%emt 0:00:51]} Rxb1 {[%emt 0:00:54]} 29. Rxb1 {[%emt 0:00:08]} Qc8 {[%emt 0:02:22]} 30. Qb4 {[%emt 0:05:31]} Qc6 {[%emt 0:01:09]} 31. Nd4 {[%emt 0:01:36]} Qxa4 {[%emt 0:00:51]} 1/2-1/2

[Event "WYCC U18 Girls 2019"]
[Site "Mumbai"]
[Date "2019.10.06"]
[Round "6.8"]
[White "Cervantes Landeiro, Thalia"]
[Black "Urh, Zala"]
[Result "1-0"]
[ECO "D38"]
[WhiteElo "2176"]
[BlackElo "2105"]
[Annotator "ChessBase"]
[PlyCount "69"]
[EventDate "2019.10.02"]
[EventType "swiss"]
[EventCountry "IND"]
[SourceTitle "playchess.com"]
[Source "ChessBase"]
[SourceQuality "1"]
[TimeControl "40/5400+30:1800+30"]

1. d4 {[%emt 0:00:00]} Nf6 {[%emt 0:00:00]} 2. c4 {[%emt 0:00:00]} e6 {[%emt 0:00:00]} 3. Nf3 {[%emt 0:00:00]} d5 {[%emt 0:00:00]} 4. Nc3 {[%emt 0:00:00]} Bb4 {[%emt 0:00:02]} 5. Qa4+ {[%emt 0:00:21]} Nc6 {[%emt 0:00:16]} 6. Bd2 {[%emt 0:00:59]} O-O {[%emt 0:02:03]} 7. e3 {[%emt 0:00:26]} dxc4 {[%emt 0:01:05]} 8. Bxc4 {[%emt 0:00:37]} Bd6 {[%emt 0:00:10]} 9. Rd1 {[%emt 0:09:10]} e5 {[%emt 0:00:30]} 10. d5 {[%emt 0:03:56]} Ne7 {[%emt 0:02:22]} 11. e4 {[%emt 0:01:45]} h6 {[%emt 0:06:39]} 12. O-O {[%emt 0:05:23]} a6 {[%emt 0:13:07]} 13. Qc2 {[%emt 0:05:48]} c6 {[%emt 0:05:23]} 14. dxc6 {[%emt 0:01:23]} Nxc6 {[%emt 0:00:11]} 15. h3 {[%emt 0:06:24]} Qe7 {[%emt 0:02:57]} 16. Rfe1 {[%emt 0:05:04]} Nb4 {[%emt 0:05:27]} 17. Qb1 {[%emt 0:07:35]} b5 {[%emt 0:01:41]} 18. Bb3 {[%emt 0:01:30]} Be6 {[%emt 0:08:18]} 19. Nd5 {[%emt 0:07:13]} Bxd5 {[%emt 0:12:52]} 20. exd5 {[%emt 0:01:02]} e4 {[%emt 0:01:23]} 21. Bc3 {[%emt 0:09:33]} Qc7 {[%emt 0:07:57]} 22. Bxf6 {[%emt 0:05:47]} exf3 {[%emt 0:00:25]} 23. Bc3 {[%emt 0:00:35]} a5 {[%emt 0:03:27]} 24. Qf5 {[%emt 0:06:05]} a4 {[%emt 0:06:41]} 25. a3 {[%emt 0:12:22]} axb3 {[%emt 0:02:26]} 26. axb4 {[%emt 0:00:03]} fxg2 {[%emt 0:06:58]} 27. Kxg2 {[%emt 0:00:16]} Rfe8 {[%emt 0:01:18]} 28. Kh1 {[%emt 0:01:26]} Rxe1+ {[%emt 0:03:41]} 29. Rxe1 {[%emt 0:00:01]} Rd8 {[%emt 0:00:01]} 30. Rg1 {[%emt 0:01:47]} Qd7 {[%emt 0:06:59]} 31. Rxg7+ {[%emt 0:00:29]} Kf8 {[%emt 0:00:01]} 32. Qf3 {[%emt 0:06:00]} Bxb4 {[%emt 0:00:18]} 33. Rg8+ {[%emt 0:00:27]} Kxg8 {[%emt 0:00:16]} 34. Qg3+ {[%emt 0:00:07]} Kf8 {[%emt 0:00:16]} 35. Bxb4+ {[%emt 0:00:09]} 1-0

[Event "WYCC U18 Girls 2019"]
[Site "Mumbai"]
[Date "2019.10.06"]
[Round "6.9"]
[White "Sowa, Wiktoria"]
[Black "Yan, Tianqi"]
[Result "0-1"]
[ECO "A06"]
[WhiteElo "2016"]
[BlackElo "2236"]
[Annotator "ChessBase"]
[PlyCount "92"]
[EventDate "2019.10.02"]
[EventType "swiss"]
[EventCountry "IND"]
[SourceTitle "playchess.com"]
[Source "ChessBase"]
[SourceQuality "1"]
[TimeControl "40/5400+30:1800+30"]

1. Nf3 Nf6 2. e3 d5 3. c4 e6 4. b3 c5 5. Bb2 Nc6 6. cxd5 exd5 7. Bb5 Bd7 8. O-O Bd6 9. d4 cxd4 10. Nxd4 O-O 11. Be2 Rc8 12. Nd2 Bb8 13. Rc1 Nxd4 14. Bxd4 Ne4 15. Rxc8 Bxc8 16. Nf3 Bg4 17. Ne5 Bxe2 18. Qxe2 Qc7 19. g3 f6 20. Nd3 Qd7 21. Rc1 Qf5 22. Ne1 Ng5 23. Qc2 Qh3 24. Qd3 Rd8 25. Bb2 Qe6 26. Rc2 Qe4 27. Qxe4 dxe4 28. Kf1 Nf3 29. Nxf3 exf3 30. Ke1 Bd6 31. Bc3 Kf7 32. Rd2 Ke6 33. Rd4 Rc8 34. Kd2 Be5 35. Rd3 Bxc3+ 36. Rxc3 Rxc3 37. Kxc3 Kf5 38. h3 Ke4 39. a4 a5 40. Kc4 h5 41. Kc3 g5 42. Kc4 b6 43. Kc3 f5 44. Kc4 h4 45. gxh4 g4 46. h5 gxh3 {Kd4# Ke5+} 0-1

[Event "WYCC U18 Girls 2019"]
[Site "Mumbai"]
[Date "2019.10.06"]
[Round "6.10"]
[White "Shpanko, Nadiia"]
[Black "Hamedi Nia, Vesal"]
[Result "0-1"]
[ECO "D02"]
[WhiteElo "2213"]
[BlackElo "2057"]
[Annotator "ChessBase"]
[PlyCount "36"]
[EventDate "2019.10.02"]
[EventType "swiss"]
[EventCountry "IND"]
[SourceTitle "playchess.com"]
[Source "ChessBase"]
[SourceQuality "1"]
[TimeControl "40/5400+30:1800+30"]

1. d4 {[%emt 0:00:00]} d5 {[%emt 0:00:00]} 2. Nf3 {[%emt 0:00:00]} Nf6 {[%emt 0:00:05]} 3. g3 {[%emt 0:00:00]} Bf5 {[%emt 0:00:58]} 4. Bg2 {[%emt 0:00:14]} c6 {[%emt 0:00:16]} 5. O-O {[%emt 0:00:32]} e6 {[%emt 0:02:21]} 6. c4 {[%emt 0:06:37]} Be7 {[%emt 0:06:42]} 7. Nbd2 {[%emt 0:05:29]} h6 {[%emt 0:02:38]} 8. c5 {[%emt 0:09:18]} b6 {[%emt 0:05:57]} 9. cxb6 {[%emt 0:00:14]} Qxb6 {[%emt 0:02:15]} 10. Nb1 {[%emt 0:10:09]} O-O {[%emt 0:03:46]} 11. Nc3 {[%emt 0:00:06]} Nbd7 {[%emt 0:02:11]} 12. Re1 {[%emt 0:12:13]} Rac8 {[%emt 0:07:07]} 13. Na4 {[%emt 0:12:47]} Qa6 {[%emt 0:13:21]} 14. Nd2 {[%emt 0:17:38]} c5 {[%emt 0:05:59]} 15. dxc5 {[%emt 0:03:23]} Nxc5 {[%emt 0:00:46]} 16. Nxc5 {[%emt 0:00:04]} Bxc5 {[%emt 0:00:21]} 17. e4 {[%emt 0:01:12]} Bxf2+ {[%emt 0:03:25]} 18. Kxf2 {[%emt 0:03:47]} Ng4+ {[%emt 0:00:13]} 0-1

[Event "WYCC U18 Girls 2019"]
[Site "Mumbai"]
[Date "2019.10.06"]
[Round "6.11"]
[White "Nilssen, Ellen Fredericia"]
[Black "Swiech, Joanna"]
[Result "1/2-1/2"]
[ECO "E01"]
[WhiteElo "2137"]
[BlackElo "2054"]
[Annotator "ChessBase"]
[PlyCount "61"]
[EventDate "2019.10.02"]
[EventType "swiss"]
[EventCountry "IND"]
[SourceTitle "playchess.com"]
[Source "ChessBase"]
[SourceQuality "1"]
[TimeControl "40/5400+30:1800+30"]

1. d4 {[%emt 0:00:00]} d5 {[%emt 0:00:00]} 2. c4 {[%emt 0:00:00]} e6 {[%emt 0:00:00]} 3. g3 {[%emt 0:00:00]} Nf6 {[%emt 0:00:00]} 4. Bg2 {[%emt 0:00:00]} c6 {[%emt 0:01:51]} 5. Nf3 {[%emt 0:00:17]} Bd6 {[%emt 0:00:43]} 6. O-O {[%emt 0:02:01]} Nbd7 {[%emt 0:01:41]} 7. Qc2 {[%emt 0:03:14]} O-O {[%emt 0:04:27]} 8. b3 {[%emt 0:03:27]} Ne4 {[%emt 0:06:31]} 9. Bb2 {[%emt 0:03:20]} Qc7 {[%emt 0:03:05]} 10. Nc3 {[%emt 0:06:31]} f5 {[%emt 0:05:20]} 11. a4 {[%emt 0:07:15]} Ndf6 {[%emt 0:04:12]} 12. Ne1 {[%emt 0:08:44]} Bd7 {[%emt 0:04:41]} 13. Nd3 {[%emt 0:02:53]} b6 {[%emt 0:06:58]} 14. Rac1 {[%emt 0:03:20]} Rac8 {[%emt 0:02:02]} 15. e3 {[%emt 0:03:47]} Nxc3 {[%emt 0:01:57]} 16. Qxc3 {[%emt 0:01:22]} Ne4 {[%emt 0:01:00]} 17. Qe1 {[%emt 0:00:44]} Qd8 {[%emt 0:08:05]} 18. Qe2 {[%emt 0:06:29]} Qe7 {[%emt 0:01:47]} 19. Rc2 {[%emt 0:03:12]} c5 {[%emt 0:21:49]} 20. Rfc1 {[%emt 0:10:39]} dxc4 {[%emt 0:00:59]} 21. Rxc4 {[%emt 0:00:28]} cxd4 {[%emt 0:01:32]} 22. Rxc8 {[%emt 0:03:49]} Rxc8 {[%emt 0:00:07]} 23. Rxc8+ {[%emt 0:05:52]} Bxc8 {[%emt 0:00:08]} 24. exd4 {[%emt 0:00:12]} Bb7 {[%emt 0:03:21]} 25. Ne5 {[%emt 0:02:11]} Bxe5 {[%emt 0:02:21]} 26. dxe5 {[%emt 0:01:18]} Qc5 {[%emt 0:01:08]} 27. h4 {[%emt 0:04:29]} Bd5 {[%emt 0:07:27]} 28. Bxe4 {[%emt 0:04:21]} Bxe4 {[%emt 0:01:39]} 29. Qd2 {[%emt 0:00:21]} Qd5 {[%emt 0:00:44]} 30. Qxd5 {[%emt 0:00:06]} Bxd5 {[%emt 0:00:22]} 31. b4 {[%emt 0:00:06]} 1/2-1/2

[Event "WYCC U18 Girls 2019"]
[Site "Mumbai"]
[Date "2019.10.06"]
[Round "6.12"]
[White "Tarini Goyal"]
[Black "Khachatryan, Anna"]
[Result "1/2-1/2"]
[ECO "A49"]
[WhiteElo "2128"]
[BlackElo "2044"]
[Annotator "ChessBase"]
[PlyCount "70"]
[EventDate "2019.10.02"]
[EventType "swiss"]
[EventCountry "IND"]
[SourceTitle "playchess.com"]
[Source "ChessBase"]
[SourceQuality "1"]
[TimeControl "40/5400+30:1800+30"]

1. d4 Nf6 2. Nf3 g6 3. g3 Bg7 4. Bg2 O-O 5. c4 c5 6. d5 d6 7. Nc3 e6 8. O-O exd5 9. cxd5 Re8 10. Re1 a6 11. a4 Nbd7 12. Qc2 Ne5 13. Nxe5 Rxe5 14. Bf4 Re8 15. h3 Nh5 16. Bd2 f5 17. a5 Bd7 18. Na4 Bb5 19. Nb6 Rb8 20. Bc3 Nf6 21. b3 Ne4 22. Bxg7 Kxg7 23. Qb2+ Qf6 24. Qxf6+ Kxf6 25. e3 Re7 26. Ra2 Kf7 27. Rc1 Rd8 28. Bf1 Nf6 29. b4 Bxf1 30. Kxf1 cxb4 31. Rb2 Ne4 32. Rxb4 Nc5 33. Ke2 Kf6 34. Rc2 Rc7 35. Rbc4 Re7 1/2-1/2

[Event "WYCC U18 Girls 2019"]
[Site "Mumbai"]
[Date "2019.10.06"]
[Round "6.13"]
[White "Aciu, Malina-Andreea"]
[Black "Zeliantsova, Kseniya"]
[Result "1-0"]
[ECO "B07"]
[WhiteElo "2076"]
[BlackElo "1994"]
[Annotator "NA"]
[PlyCount "53"]
[EventDate "2019.10.02"]
[EventType "swiss"]
[EventCountry "IND"]
[SourceTitle "playchess.com"]
[Source "ChessBase"]
[SourceQuality "1"]
[TimeControl "40/5400+30:1800+30"]

1. e4 {[%emt 0:00:00]} d6 {[%emt 0:00:00]} 2. d4 {[%emt 0:00:00]} Nf6 {[%emt 0:00:00]} 3. Nc3 {[%emt 0:00:00]} g6 {[%emt 0:00:00]} 4. Be3 {[%emt 0:00:00]} Bg7 {[%emt 0:00:02]} 5. Qd2 {[%emt 0:00:00]} O-O {[%emt 0:00:36]} 6. f3 {[%emt 0:00:06]} c6 {[%emt 0:00:47]} 7. g4 {[%emt 0:08:24]} b5 {[%emt 0:11:40]} 8. h4 {[%emt 0:14:32]} Qa5 {[%emt 0:06:23]} 9. h5 {[%emt 0:11:51]} e5 {[%emt 0:07:01]} 10. dxe5 {[%emt 0:06:08]} dxe5 {[%emt 0:00:06]} 11. Bh6 {[%emt 0:08:16]} Rd8 {[%emt 0:05:30]} 12. Bd3 {[%emt 0:02:31]} Nbd7 {[%emt 0:10:15]} 13. Bxg7 {[%emt 0:07:03]} Kxg7 {[%emt 0:00:08]} 14. hxg6 {[%emt 0:05:00]} fxg6 $16 {[%emt 0:00:34]} 15. Nh3 {[%emt 0:22:46]} Nf8 {[%emt 0:02:53]} 16. O-O {[%emt 0:04:41]} c5 {[%emt 0:08:45]} 17. Qh2 {[%emt 0:00:27]} c4 {[%emt 0:02:04]} 18. Be2 {[%emt 0:01:14]} Qb6+ {[%emt 0:01:27]} 19. Kh1 {[%emt 0:00:31]} N8d7 {[%emt 0:08:35]} 20. g5 {[%emt 0:00:45]} Nh5 {[%emt 0:03:41]} 21. Nd5 {[%emt 0:01:13]} Qc5 {[%emt 0:00:17]} 22. f4 {[%emt 0:00:54]} Nxf4 {[%emt 0:00:09]} 23. Nhxf4 {[%emt 0:00:07]} exf4 {[%emt 0:00:13]} 24. Rxf4 {[%emt 0:01:29]} Bb7 25. Qh6+ {[%emt 0:00:12]} Kg8 {[%emt 0:15:28]} 26. Rh4 {[%emt 0:00:54]} Nf8 {[%emt 0:00:19]} 27. Rf1 {[%emt 0:00:45]} 1-0